fUST/lending_fUST_20250808
["ID","MTS","AMOUNT","RATE_DAILY","PERIOD"]
[377950552,1754626246038,-325.0,0.00023282,3]
[377950554,1754626246048,-151.2807535,0.00023286,2]
[377950556,1754626246057,-500.0,0.00023286,2]
[377950558,1754626246067,-534.96,0.00023287,2]
[377950560,1754626246076,-2049.14,0.00023287,2]
[377950562,1754626246086,-460.0,0.00023287,2]
[377950564,1754626246095,-460.0,0.00023287,2]
[377950566,1754626246105,-460.0,0.00023287,2]
[377950568,1754626246114,-460.0,0.00023287,2]
[377950570,1754626246124,-361.58,0.00023287,2]
[377950572,1754626246133,-460.0,0.00023287,2]
[377950574,1754626246143,-460.0,0.00023287,2]
[377950576,1754626246153,-1032.43,0.00023287,2]
[377950578,1754626246163,-2203.77,0.00023287,2]
[377950580,1754626246175,-460.0,0.00023287,2]
[377950582,1754626246185,-739.18,0.00023287,2]
[377950584,1754626246195,-460.0,0.00023287,2]
[377950586,1754626246204,-813.13,0.00023287,2]
[377950588,1754626246216,-460.0,0.00023287,2]
[377950590,1754626246226,-460.0,0.00023287,2]
[377950592,1754626246235,-1228.04,0.00023287,2]
[377950594,1754626246245,-853.13,0.00023287,2]
[377950596,1754626246254,-1750.1,0.00023287,2]
[377950598,1754626246263,-1098.83,0.00023287,2]
[377950600,1754626246273,-460.0,0.00023287,2]
[377950602,1754626246282,-460.0,0.00023287,2]
[377950604,1754626246291,-460.0,0.00023287,2]
[377950606,1754626246301,-479.75,0.00023287,2]
[377950608,1754626246310,-460.0,0.00023287,2]
[377950610,1754626246319,-1294.26,0.00023287,2]
[377950612,1754626246328,-460.0,0.00023287,2]
[377950614,1754626246338,-460.0,0.00023287,2]
[377950616,1754626246347,-578.88,0.00023287,2]
[377950618,1754626246356,-545.94,0.00023287,2]
[377950620,1754626246366,-3220.25,0.00023287,2]
[377950621,1754626246375,-460.0,0.00023287,2]
[377950623,1754626246384,-460.0,0.00023287,2]
[377950625,1754626246393,-335.68,0.00023287,2]
[377950627,1754626246402,-460.0,0.00023287,2]
[377950629,1754626246412,-923.49,0.00023287,2]
[377950632,1754626246422,-460.0,0.00023287,2]
[377950634,1754626246438,-460.0,0.00023287,2]
[377950636,1754626246457,-460.0,0.00023287,2]
[377950638,1754626246467,-460.0,0.00023287,2]
[377950639,1754626246476,-862.15,0.00023287,2]
[377950641,1754626246486,-460.0,0.00023287,2]
[377950643,1754626246495,-460.0,0.00023287,2]
[377950645,1754626246505,-476.69,0.00023287,2]
[377950648,1754626246516,-849.28,0.00023287,2]
[377950650,1754626246526,-460.0,0.00023287,2]
[377950652,1754626246536,-460.0,0.00023287,2]
[377950653,1754626246545,-559.92,0.00023287,2]
[377950656,1754626246555,-460.0,0.00023287,2]
[377950658,1754626246564,-460.0,0.00023287,2]
[377950660,1754626246574,-782.63,0.00023287,2]
[377950662,1754626246585,-463.68,0.00023287,2]
[377950663,1754626246595,-1011.77739619,0.00023299,2]
[377950666,1754626246604,-500.0,0.00023447,2]
[377950667,1754626246613,-1000.0,0.0002345,2]
[377950670,1754626246623,-500.0,0.00023456,2]
[377950672,1754626246633,-160.0,0.00023477,2]
[377950674,1754626246643,-819.42,0.00023551,3]
[377950676,1754626246653,-409.72,0.00023551,3]
[377950678,1754626246662,-160.0,0.00023551,3]
[377950679,1754626246672,-216.5651299,0.00023551,3]
[377950681,1754626246681,-160.0,0.00023551,3]
[377950683,1754626246691,-160.0,0.00023551,3]
[377950685,1754626246700,-215.36146706,0.00023551,3]
[377950687,1754626246710,-150.16,0.0002356,2]
[377950689,1754626246719,-534.96,0.00023561,2]
[377950691,1754626246729,-2049.14,0.00023561,2]
[377950693,1754626246739,-183.53028677,0.00023561,2]
[377950695,1754626246749,-460.0,0.00023561,2]
[377950697,1754626246758,-428.21,0.00023561,2]
[377950699,1754626246768,-460.0,0.00023561,2]
[377950701,1754626246777,-460.0,0.00023561,2]
[377950703,1754626246787,-460.0,0.00023561,2]
[377950705,1754626246798,-1032.43,0.00023561,2]
[377950707,1754626246807,-2203.77,0.00023561,2]
[377950709,1754626246817,-460.0,0.00023561,2]
[377950711,1754626246828,-739.18,0.00023561,2]
[377950713,1754626246838,-460.0,0.00023561,2]
[377950716,1754626246849,-813.13,0.00023561,2]
[377950718,1754626246858,-460.0,0.00023561,2]
[377950720,1754626246867,-460.0,0.00023561,2]
[377950722,1754626246876,-1228.04,0.00023561,2]
[377950724,1754626246886,-853.13,0.00023561,2]
[377950726,1754626246895,-1750.1,0.00023561,2]
[377950727,1754626246908,-1098.83,0.00023561,2]
[377950729,1754626246918,-460.0,0.00023561,2]
[377950731,1754626246927,-460.0,0.00023561,2]
[377950733,1754626246937,-460.0,0.00023561,2]
[377950735,1754626246947,-479.75,0.00023561,2]
[377950737,1754626246956,-267.24098271,0.00023561,2]
[377950739,1754626246966,-1294.26,0.00023561,2]
[377950741,1754626246976,-460.0,0.00023561,2]
[377950743,1754626246985,-460.0,0.00023561,2]
[377950745,1754626246995,-545.94,0.00023561,2]
[377950747,1754626247004,-3220.25,0.00023561,2]
[377950766,1754626247173,-460.0,0.00023561,2]
[377950768,1754626247183,-460.0,0.00023561,2]
[377950770,1754626247193,-184.61,0.00023561,2]
[377950772,1754626247203,-923.49,0.00023561,2]
[377950774,1754626247213,-344.53184898,0.00023561,2]
[377950776,1754626247222,-460.0,0.00023561,2]
[377950778,1754626247232,-460.0,0.00023561,2]
[377950780,1754626247242,-399.67858357,0.00023561,2]
[377950782,1754626247253,-862.15,0.00023561,2]
[377950784,1754626247263,-460.0,0.00023561,2]
[377950786,1754626247273,-460.0,0.00023561,2]
[377950788,1754626247282,-849.28,0.00023561,2]
[377950790,1754626247292,-202.25,0.00023561,2]
[377950792,1754626247301,-460.0,0.00023561,2]
[377950794,1754626247311,-559.92,0.00023561,2]
[377950796,1754626247320,-602.31301509,0.00023561,2]
[377950798,1754626247331,-460.0,0.00023561,2]
[377950800,1754626247340,-782.63,0.00023561,2]
[377950802,1754626247350,-463.68,0.00023561,2]
[377950804,1754626247361,-1758.0,0.00023608,3]
[377950806,1754626247370,-1758.0,0.00023608,3]
[377950808,1754626247379,-1758.0,0.00023608,3]
[377950810,1754626247390,-1758.0,0.00023608,3]
[377950813,1754626247400,-1758.0,0.00023608,3]
[377950815,1754626247410,-1786.30755839,0.00023608,3]
[377950817,1754626247419,-1758.0,0.00023608,3]
[377950819,1754626247428,-420.0,0.00023707,2]
[377950821,1754626247438,-1500.0,0.00023718,2]
[377950823,1754626247448,-1500.0,0.00023718,2]
[377950825,1754626247458,-1500.0,0.00023727,2]
[377950827,1754626247467,-213.68656915,0.00023727,2]
[377950829,1754626247478,-5888.0,0.00023738,2]
[377950831,1754626247487,-1500.0,0.00023763,2]
[377950833,1754626247497,-2000.0,0.000238,6]
[377950835,1754626247506,-2000.0,0.000238,7]
[377950837,1754626247515,-1680.0,0.00023818,2]
[377950839,1754626247526,-534.96,0.00023835,2]
[377950841,1754626247535,-2049.14,0.00023835,2]
[377950843,1754626247545,-460.0,0.00023835,2]
[377950845,1754626247556,-460.0,0.00023835,2]
[377950847,1754626247567,-460.0,0.00023835,2]
[377950849,1754626247577,-460.0,0.00023835,2]
[377950851,1754626247587,-1032.43,0.00023835,2]
[377950853,1754626247597,-2203.77,0.00023835,2]
[377950855,1754626247607,-460.0,0.00023835,2]
[377950857,1754626247617,-739.18,0.00023835,2]
[377950859,1754626247627,-460.0,0.00023835,2]
[377950861,1754626247637,-813.13,0.00023835,2]
[377950863,1754626247647,-460.0,0.00023835,2]
[377950865,1754626247657,-460.0,0.00023835,2]
[377950867,1754626247667,-1228.04,0.00023835,2]
[377950869,1754626247677,-853.13,0.00023835,2]
[377950871,1754626247686,-1750.1,0.00023835,2]
[377950873,1754626247695,-1098.83,0.00023835,2]
[377950875,1754626247705,-460.0,0.00023835,2]
[377950877,1754626247715,-460.0,0.00023835,2]
[377950879,1754626247726,-460.0,0.00023835,2]
[377950881,1754626247735,-479.75,0.00023835,2]
[377950883,1754626247745,-1294.26,0.00023835,2]
[377950885,1754626247755,-460.0,0.00023835,2]
[377950887,1754626247765,-460.0,0.00023835,2]
[377950889,1754626247774,-151.0,0.00023835,7]
[377950891,1754626247783,-545.94,0.00023835,2]
[377950893,1754626247794,-151.0,0.00023835,7]
[377950895,1754626247804,-3220.25,0.00023835,2]
[377950897,1754626247813,-460.0,0.00023835,2]
[377950899,1754626247823,-460.0,0.00023835,2]
[377950901,1754626247834,-151.0,0.00023835,7]
[377950903,1754626247843,-923.49,0.00023835,2]
[377950905,1754626247853,-460.0,0.00023835,2]
[377950908,1754626247863,-460.0,0.00023835,2]
[377950910,1754626247873,-862.15,0.00023835,2]
[377950912,1754626247882,-151.0,0.00023835,7]
[377950914,1754626247891,-460.0,0.00023835,2]
[377950915,1754626247903,-151.0,0.00023835,7]
[377950918,1754626247913,-518.28771446,0.00023835,2]
[377950920,1754626247923,-849.28,0.00023835,2]
[377950922,1754626247932,-151.0,0.00023835,7]
[377950924,1754626247942,-460.0,0.00023835,2]
[377950926,1754626247951,-559.92,0.00023835,2]
[377950928,1754626247962,-460.0,0.00023835,2]
[377950929,1754626247972,-782.63,0.00023835,2]
[377950930,1754626247983,-463.68,0.00023835,2]
[377950931,1754626247993,-151.0,0.00023835,7]
[377950932,1754626248003,-600.95356518,0.00023904,2]
[377950933,1754626248012,-150.0,0.0002395,2]
[377950934,1754626248021,-1554.79251867,0.0002398,2]
[377950935,1754626248032,-160.0,0.00024,7]
[377950936,1754626248042,-160.0,0.00024,7]
[377950937,1754626248052,-842.78739015,0.00024,7]
[377950938,1754626248061,-527.68033864,0.00024,7]
[377950939,1754626248071,-231.87430077,0.00024,7]
[377950940,1754626248081,-160.0,0.00024,7]
[377950941,1754626248090,-312.16666667,0.00024,7]
[377950942,1754626248100,-216.5651299,0.00024,7]
[377950943,1754626248110,-160.0,0.00024,7]
[377950944,1754626248120,-160.0,0.00024,7]
[377950946,1754626248131,-160.0,0.00024,7]
[377950947,1754626248141,-260.0,0.00024025,2]
[377950949,1754626248151,-534.96,0.00024109,2]
[377950951,1754626248160,-2049.14,0.00024109,2]
[377950953,1754626248170,-460.0,0.00024109,2]
[377950955,1754626248179,-460.0,0.00024109,2]
[377950957,1754626248190,-460.0,0.00024109,2]
[377950959,1754626248200,-1032.43,0.00024109,2]
[377950961,1754626248210,-2203.77,0.00024109,2]
[377950963,1754626248220,-460.0,0.00024109,2]
[377950965,1754626248229,-739.18,0.00024109,2]
[377950967,1754626248239,-460.0,0.00024109,2]
[377950969,1754626248248,-813.13,0.00024109,2]
[377950971,1754626248258,-460.0,0.00024109,2]
[377950973,1754626248268,-460.0,0.00024109,2]
[377950975,1754626248278,-151.0,0.00024109,7]
[377950977,1754626248288,-151.0,0.00024109,7]
[377950979,1754626248298,-1228.04,0.00024109,2]
[377950981,1754626248308,-853.13,0.00024109,2]
[377950983,1754626248318,-151.0,0.00024109,7]
[377950985,1754626248328,-1750.1,0.00024109,2]
[377950987,1754626248337,-151.0,0.00024109,7]
[377950989,1754626248347,-1098.83,0.00024109,2]
[377950991,1754626248357,-460.0,0.00024109,2]
[377950993,1754626248368,-151.0,0.00024109,7]
[377950995,1754626248379,-460.0,0.00024109,2]
[377950997,1754626248389,-151.0,0.00024109,7]
[377950999,1754626248398,-151.0,0.00024109,7]
[377951001,1754626248408,-460.0,0.00024109,2]
[377951003,1754626248418,-479.75,0.00024109,2]
[377951005,1754626248428,-151.0,0.00024109,7]
[377951007,1754626248438,-1294.26,0.00024109,2]
[377951009,1754626248448,-502.108345,0.00024109,7]
[377951011,1754626248458,-151.0,0.00024109,7]
[377951014,1754626248468,-502.108345,0.00024109,7]
[377951015,1754626248477,-460.0,0.00024109,2]
[377951018,1754626248487,-460.0,0.00024109,2]
[377951019,1754626248496,-344.24275,0.00024109,7]
[377951022,1754626248506,-545.94,0.00024109,2]
[377951023,1754626248515,-344.24275,0.00024109,7]
[377951026,1754626248525,-3220.25,0.00024109,2]
[377951027,1754626248535,-460.0,0.00024109,2]
[377951029,1754626248545,-296.49,0.00024109,2]
[377951032,1754626248555,-923.49,0.00024109,2]
[377951033,1754626248564,-460.0,0.00024109,2]
[377951035,1754626248574,-273.3,0.00024109,2]
[377951037,1754626248585,-862.15,0.00024109,2]
[377951039,1754626248594,-224.540474,0.00024109,7]
[377951041,1754626248603,-224.540474,0.00024109,7]
[377951043,1754626248613,-460.0,0.00024109,2]
[377951045,1754626248622,-849.28,0.00024109,2]
[377951047,1754626248632,-559.92,0.00024109,2]
[377951049,1754626248641,-460.0,0.00024109,2]
[377951051,1754626248650,-460.0,0.00024109,2]
[377951053,1754626248659,-782.63,0.00024109,2]
[377951055,1754626248669,-463.68,0.00024109,2]
[377951057,1754626248678,-189.08233475,0.00024152,2]
[377951059,1754626248688,-151.0,0.00024183,2]
[377951061,1754626248697,-193.11335179,0.00024266,2]
[377951074,1754626248810,-1806.88664821,0.00024266,2]
[377951076,1754626248820,-2000.0,0.00024266,2]
[377951078,1754626248831,-512.00691931,0.00024275,2]
[377951080,1754626248841,-607.32,0.00024293,6]
[377951082,1754626248851,-151.0,0.00024301,7]
[377951084,1754626248860,-151.0,0.00024301,7]
[377951086,1754626248870,-151.0,0.00024301,7]
[377951088,1754626248879,-151.0,0.00024301,7]
[377951090,1754626248888,-3749.0,0.00024301,2]
[377951092,1754626248900,-2000.0,0.00024311,2]
[377951094,1754626248912,-151.0,0.00024321,7]
[377951096,1754626248921,-151.0,0.00024321,7]
[377951098,1754626248931,-151.0,0.00024321,7]
[377951100,1754626248941,-151.0,0.00024321,7]
[377951102,1754626248951,-151.0,0.00024321,7]
[377951104,1754626248960,-308.606634,0.00024321,7]
[377951106,1754626248970,-308.606634,0.00024321,7]
[377951108,1754626248981,-151.0,0.00024321,7]
[377951110,1754626248991,-151.0,0.00024321,7]
[377951112,1754626249001,-151.0,0.00024321,7]
[377951114,1754626249010,-151.0,0.00024321,7]
[377951116,1754626249020,-817.416682,0.00024321,7]
[377951118,1754626249030,-817.416682,0.00024321,7]
[377951120,1754626249039,-3749.0,0.00024375,2]
[377951122,1754626249049,-534.96,0.00024383,2]
[377951124,1754626249059,-151.0,0.00024383,7]
[377951126,1754626249069,-2049.14,0.00024383,2]
[377951128,1754626249079,-270.748144,0.00024383,7]
[377951130,1754626249089,-151.0,0.00024383,7]
[377951132,1754626249098,-151.0,0.00024383,7]
[377951134,1754626249108,-151.0,0.00024383,7]
[377951136,1754626249118,-460.0,0.00024383,2]
[377951138,1754626249128,-460.0,0.00024383,2]
[377951140,1754626249138,-460.0,0.00024383,2]
[377951142,1754626249148,-1032.43,0.00024383,2]
[377951144,1754626249157,-151.0,0.00024383,7]
[377951146,1754626249167,-2203.77,0.00024383,2]
[377951148,1754626249178,-229.230536,0.00024383,7]
[377951150,1754626249187,-151.0,0.00024383,7]
[377951152,1754626249197,-460.0,0.00024383,2]
[377951154,1754626249208,-739.18,0.00024383,2]
[377951156,1754626249218,-151.0,0.00024383,7]
[377951158,1754626249228,-460.0,0.00024383,2]
[377951160,1754626249238,-813.13,0.00024383,2]
[377951162,1754626249247,-460.0,0.00024383,2]
[377951164,1754626249257,-460.0,0.00024383,2]
[377951166,1754626249266,-1228.04,0.00024383,2]
[377951167,1754626249275,-853.13,0.00024383,2]
[377951169,1754626249285,-1750.1,0.00024383,2]
[377951171,1754626249296,-1098.83,0.00024383,2]
[377951173,1754626249305,-460.0,0.00024383,2]
[377951175,1754626249315,-460.0,0.00024383,2]
[377951177,1754626249324,-460.0,0.00024383,2]
[377951179,1754626249334,-479.75,0.00024383,2]
[377951181,1754626249343,-1294.26,0.00024383,2]
[377951183,1754626249353,-460.0,0.00024383,2]
[377951185,1754626249363,-460.0,0.00024383,2]
[377951187,1754626249373,-545.94,0.00024383,2]
[377951189,1754626249382,-3220.25,0.00024383,2]
[377951191,1754626249392,-460.0,0.00024383,2]
[377951193,1754626249401,-923.49,0.00024383,2]
[377951195,1754626249413,-460.0,0.00024383,2]
[377951197,1754626249423,-862.15,0.00024383,2]
[377951199,1754626249432,-460.0,0.00024383,2]
[377951201,1754626249442,-849.28,0.00024383,2]
[377951203,1754626249451,-559.92,0.00024383,2]
[377951205,1754626249461,-460.0,0.00024383,2]
[377951207,1754626249471,-460.0,0.00024383,2]
[377951209,1754626249480,-782.63,0.00024383,2]
[377951211,1754626249490,-247.0,0.00024397,2]
[377951213,1754626249500,-585.45,0.00024474,2]
[377951215,1754626249509,-247.0,0.00024477,2]
[377951217,1754626249518,-360.0,0.00024573,2]
[377951219,1754626249528,-4238.0,0.00024585,2]
[377951221,1754626249537,-150.0,0.00024597,2]
[377951223,1754626249547,-150.0,0.00024597,2]
[377951225,1754626249557,-150.0,0.00024597,2]
[377951230,1754626249599,-150.0,0.00024597,2]
[377951232,1754626249609,-971.0,0.00024597,2]
[377951234,1754626249619,-2149.0,0.00024597,2]
[377951236,1754626249628,-636.0,0.00024597,2]
[377951238,1754626249638,-151.0,0.000246,9]
[377951240,1754626249648,-247.0,0.00024618,2]
[377951242,1754626249658,-151.0,0.00024657,7]
[377951244,1754626249667,-534.96,0.00024657,2]
[377951246,1754626249676,-356.969485,0.00024657,7]
[377951248,1754626249685,-356.969485,0.00024657,7]
[377951250,1754626249695,-151.0,0.00024657,7]
[377951252,1754626249705,-2049.14,0.00024657,2]
[377951254,1754626249714,-460.0,0.00024657,2]
[377951256,1754626249723,-460.0,0.00024657,2]
[377951258,1754626249732,-460.0,0.00024657,2]
[377951260,1754626249741,-1032.43,0.00024657,2]
[377951262,1754626249750,-2203.77,0.00024657,2]
[377951264,1754626249760,-460.0,0.00024657,2]
[377951266,1754626249769,-739.18,0.00024657,2]
[377951268,1754626249778,-460.0,0.00024657,2]
[377951270,1754626249789,-813.13,0.00024657,2]
[377951272,1754626249798,-460.0,0.00024657,2]
[377951274,1754626249808,-302.58,0.00024657,2]
[377951276,1754626249818,-1228.04,0.00024657,2]
[377951278,1754626249829,-853.13,0.00024657,2]
[377951280,1754626249839,-1750.1,0.00024657,2]
[377951282,1754626249849,-1098.83,0.00024657,2]
[377951284,1754626249859,-460.0,0.00024657,2]
[377951286,1754626249868,-460.0,0.00024657,2]
[377951288,1754626249878,-259.23,0.00024657,2]
[377951290,1754626249888,-479.75,0.00024657,2]
[377951292,1754626249899,-1294.26,0.00024657,2]
[377951294,1754626249916,-460.0,0.00024657,2]
[377951296,1754626249925,-460.0,0.00024657,2]
[377951298,1754626249934,-151.0,0.00024657,7]
[377951300,1754626249944,-545.94,0.00024657,2]
[377951302,1754626249955,-151.0,0.00024657,7]
[377951304,1754626249964,-3220.25,0.00024657,2]
[377951306,1754626249974,-460.0,0.00024657,2]
[377951308,1754626249983,-151.0,0.00024657,7]
[377951310,1754626249994,-923.49,0.00024657,2]
[377951312,1754626250003,-460.0,0.00024657,2]
[377951314,1754626250012,-862.15,0.00024657,2]
[377951316,1754626250022,-151.0,0.00024657,7]
[377951318,1754626250032,-460.0,0.00024657,2]
[377951320,1754626250041,-151.0,0.00024657,7]
[377951322,1754626250051,-849.28,0.00024657,2]
[377951324,1754626250060,-151.0,0.00024657,7]
[377951326,1754626250070,-559.92,0.00024657,2]
[377951328,1754626250080,-460.0,0.00024657,2]
[377951330,1754626250089,-460.0,0.00024657,2]
[377951332,1754626250099,-782.63,0.00024657,2]
[377951334,1754626250107,-200.0,0.00024658,15]
[377951336,1754626250116,-380.0,0.00024658,2]
[377951338,1754626250126,-153.92568386,0.00024658,2]
[377951340,1754626250136,-151.0,0.00024658,2]
[377951342,1754626250145,-500.0,0.00024658,2]
[377951344,1754626250155,-500.0,0.0002468,2]
[377951346,1754626250165,-5888.0,0.00024685,2]
[377951348,1754626250174,-500.0,0.00024773,2]
[377951350,1754626250183,-500.0,0.00024773,2]
[377951352,1754626250192,-500.0,0.00024773,2]
[377951354,1754626250202,-504.67373538,0.00024773,2]
[377951356,1754626250211,-500.0,0.00024773,2]
[377951358,1754626250221,-500.0,0.00024773,2]
[377951360,1754626250230,-500.0,0.00024773,2]
[377951361,1754626250239,-500.0,0.00024773,2]
[377951363,1754626250248,-500.0,0.00024773,2]
[377951365,1754626250258,-500.0,0.00024773,2]
[377951368,1754626250268,-500.0,0.00024773,2]
[377951369,1754626250277,-500.0,0.00024773,2]
[377951371,1754626250287,-500.0,0.00024773,2]
[377951374,1754626250296,-500.0,0.00024773,2]
[377951376,1754626250306,-500.0,0.00024773,2]
[377951378,1754626250315,-500.0,0.00024773,2]
[377951379,1754626250324,-553.38782005,0.00024773,2]
[377951382,1754626250334,-501.60426604,0.00024773,2]
[377951384,1754626250343,-502.37381793,0.00024773,2]
[377951385,1754626250352,-2000.0,0.000248,8]
[377951387,1754626250361,-152.035191,0.000248,7]
[377951390,1754626250372,-151.0,0.000248,7]
[377951391,1754626250381,-151.0,0.000248,7]
[377951394,1754626250391,-151.0,0.000248,7]
[377951395,1754626250400,-151.0,0.000248,7]
[377951397,1754626250409,-199.155216,0.000248,7]
[377951399,1754626250418,-151.0,0.000248,7]
[377951401,1754626250428,-151.0,0.000248,7]
[377951403,1754626250437,-151.0,0.000248,7]
[377951405,1754626250446,-151.0,0.000248,7]
[377951407,1754626250456,-308.606634,0.000248,7]
[377951409,1754626250465,-308.606634,0.000248,7]
[377951411,1754626250475,-109938.334829,0.000248,2]
[377951413,1754626250485,-151.0,0.000248,7]
[377951415,1754626250494,-500.0,0.00024814,2]
[377951417,1754626250504,-2500.0,0.00024814,2]
[377951419,1754626250515,-153.091671,0.00024838,7]
[377951421,1754626250525,-268.409021,0.00024838,7]
[377951423,1754626250534,-151.0,0.00024838,7]
[377951425,1754626250543,-344.24275,0.00024838,7]
[377951427,1754626250553,-344.24275,0.00024838,7]
[377951429,1754626250563,-224.540474,0.00024838,7]
[377951431,1754626250572,-224.540474,0.00024838,7]
[377951433,1754626250583,-3752.0,0.00024853,2]
[377951435,1754626250594,-2500.0,0.00024859,2]
[377951437,1754626250603,-247.0,0.0002486,2]
[377951439,1754626250613,-152.600085,0.00024864,7]
[377951441,1754626250625,-151.0,0.00024864,7]
[377951443,1754626250634,-151.0,0.00024864,7]
[377951445,1754626250643,-229.230536,0.00024864,7]
[377951447,1754626250653,-4238.0,0.00024864,7]
[377951449,1754626250662,-500.0,0.00024873,2]
[377951451,1754626250671,-500.0,0.00024873,2]
[377951453,1754626250686,-504.25851664,0.00024873,2]
[377951455,1754626250696,-500.0,0.00024873,2]
[377951457,1754626250705,-150.0,0.00024873,2]
[377951459,1754626250715,-500.0,0.00024873,2]
[377951461,1754626250724,-500.0,0.00024873,2]
[377951463,1754626250734,-500.0,0.00024873,2]
[377951465,1754626250744,-501.57902623,0.00024873,2]
[377951467,1754626250753,-500.0,0.00024873,2]
[377951469,1754626250763,-500.0,0.00024873,2]
[377951471,1754626250772,-501.6038923,0.00024873,2]
[377951473,1754626250781,-500.0,0.00024873,2]
[377951475,1754626250791,-158.0428215,0.00024873,2]
[377951476,1754626250800,-500.0,0.00024873,2]
[377951477,1754626250809,-500.0,0.00024873,2]
[377951478,1754626250818,-500.0,0.00024873,2]
[377951479,1754626250827,-500.0,0.00024873,2]
[377951480,1754626250837,-500.82577844,0.00024873,2]
[377951481,1754626250846,-500.0,0.00024873,2]
[377951482,1754626250855,-500.0,0.00024873,2]
[377951483,1754626250864,-500.0,0.00024873,2]
[377951484,1754626250874,-500.0,0.00024873,2]
[377951485,1754626250883,-500.0,0.00024873,2]
[377951486,1754626250893,-500.75183881,0.00024873,2]
[377951487,1754626250904,-500.0,0.00024873,2]
[377951488,1754626250914,-500.0,0.00024873,2]
[377951489,1754626250923,-500.0,0.00024873,2]
[377951490,1754626250933,-151.0,0.00024873,7]
[377951491,1754626250943,-151.0,0.00024873,7]
[377951492,1754626250952,-151.0,0.00024873,7]
[377951493,1754626250961,-151.0,0.00024873,7]
[377951494,1754626250970,-151.0,0.00024873,7]
[377951495,1754626250981,-151.0,0.00024873,7]
[377951496,1754626250990,-189.751364,0.00024873,7]
[377951497,1754626250999,-502.108345,0.00024873,7]
[377951499,1754626251009,-502.108345,0.00024873,7]
[377951501,1754626251019,-7329.22232193,0.0002489,2]
[377951503,1754626251030,-160.0,0.000249,7]
[377951505,1754626251039,-151.0,0.000249,7]
[377951507,1754626251049,-151.0,0.000249,7]
[377951509,1754626251059,-221.21062,0.000249,7]
[377951511,1754626251068,-151.0,0.000249,7]
[377951513,1754626251079,-356.969485,0.000249,7]
[377951515,1754626251089,-356.969485,0.000249,7]
[377951517,1754626251100,-356.969485,0.000249,7]
[377951519,1754626251110,-356.969485,0.000249,7]
[377951521,1754626251120,-151.0,0.000249,7]
[377951523,1754626251129,-151.0,0.000249,7]
[377951525,1754626251139,-151.0,0.000249,7]
[377951527,1754626251148,-151.0,0.000249,7]
[377951529,1754626251158,-151.0,0.000249,7]
[377951531,1754626251168,-151.0,0.000249,7]
[377951533,1754626251177,-151.0,0.000249,7]
[377951535,1754626251186,-162.019619,0.000249,7]
[377951537,1754626251197,-300.00064,0.000249,7]
[377951539,1754626251207,-151.0,0.000249,7]
[377951541,1754626251216,-229.230536,0.000249,7]